fUST/lending_fUST_20250811
["ID","MTS","AMOUNT","RATE_DAILY","PERIOD"]
[378589958,1754919067056,-151.0,0.00019789,2]
[378589959,1754919067067,-151.0,0.00019789,2]
[378589960,1754919067077,-151.0,0.00019789,2]
[378589961,1754919067087,-151.0,0.00019789,2]
[378589962,1754919067097,-151.0,0.00019789,2]
[378589963,1754919067106,-151.0,0.00019789,2]
[378589964,1754919067116,-500.0,0.00019789,2]
[378589965,1754919067126,-500.0,0.00019789,2]
[378589966,1754919067136,-637.211347,0.0001981,2]
[378589967,1754919067145,-637.211347,0.0001981,2]
[378589968,1754919067155,-2205.613961,0.0001981,2]
[378589969,1754919067165,-2205.613961,0.0001981,2]
[378589970,1754919067175,-213.499224,0.0001981,2]
[378589971,1754919067184,-213.499224,0.0001981,2]
[378589972,1754919067194,-151.0,0.00019811,2]
[378589973,1754919067204,-467.663135,0.00019863,2]
[378589974,1754919067214,-669.0,0.00019889,2]
[378589975,1754919067228,-151.0,0.000199,2]
[378589976,1754919067239,-151.0,0.000199,2]
[378589977,1754919067249,-151.0,0.000199,2]
[378589978,1754919067258,-22253.78368962,0.000199,2]
[378589979,1754919067268,-786.783,0.00019915,2]
[378589980,1754919067279,-179.92388822,0.00019915,2]
[378589981,1754919067288,-309.23826813,0.00019973,2]
[378589982,1754919067298,-500.0,0.00019973,2]
[378589983,1754919067307,-500.0,0.00019976,2]
[378589984,1754919067318,-151.0,0.0001999,2]
[378589985,1754919067328,-151.0,0.0001999,2]
[378589986,1754919067338,-361.8477,0.0001999,2]
[378589987,1754919067348,-361.8477,0.0001999,2]
[378589988,1754919067358,-151.0,0.0001999,2]
[378589989,1754919067368,-151.0,0.0001999,2]
[378589990,1754919067378,-151.0,0.0001999,2]
[378589991,1754919067388,-151.0,0.0001999,2]
[378589992,1754919067397,-387.026442,0.0001999,2]
[378589993,1754919067407,-387.026442,0.0001999,2]
[378589994,1754919067417,-151.0,0.0001999,2]
[378589995,1754919067427,-187.843204,0.0001999,2]
[378589996,1754919067436,-187.843204,0.0001999,2]
[378589997,1754919067446,-151.0,0.0001999,2]
[378589998,1754919067455,-500.0,0.00019995,2]
[378589999,1754919067465,-200.0,0.00019999,2]
[378590000,1754919067480,-6729.53432496,0.0002,2]
[378590001,1754919067490,-637.211347,0.0002,2]
[378590002,1754919067500,-637.211347,0.0002,2]
[378590003,1754919067510,-151.0,0.0002,2]
[378590004,1754919067520,-151.0,0.0002,2]
[378590005,1754919067531,-460.0,0.0002,2]
[378590006,1754919067542,-151.0,0.0002,2]
[378590007,1754919067553,-2205.613961,0.0002,2]
[378590008,1754919067564,-2205.613961,0.0002,2]
[378590009,1754919067574,-3347.72917448,0.0002,2]
[378590010,1754919067585,-460.0,0.0002,2]
[378590011,1754919067596,-460.0,0.0002,2]
[378590012,1754919067607,-715.76,0.0002,2]
[378590013,1754919067617,-703.51,0.0002,2]
[378590014,1754919067627,-151.0,0.0002,2]
[378590015,1754919067638,-460.0,0.0002,2]
[378590016,1754919067649,-460.0,0.0002,2]
[378590017,1754919067659,-460.0,0.0002,2]
[378590018,1754919067669,-666.28,0.0002,2]
[378590019,1754919067679,-647.17,0.0002,2]
[378590020,1754919067689,-460.0,0.0002,2]
[378590021,1754919067699,-460.0,0.0002,2]
[378590022,1754919067708,-460.0,0.0002,2]
[378590023,1754919067718,-460.0,0.0002,2]
[378590024,1754919067732,-460.0,0.0002,2]
[378590025,1754919067742,-460.0,0.0002,2]
[378590026,1754919067751,-460.0,0.0002,2]
[378590027,1754919067760,-460.0,0.0002,2]
[378590028,1754919067770,-460.0,0.0002,2]
[378590029,1754919067780,-460.0,0.0002,2]
[378590030,1754919067790,-151.0,0.0002,2]
[378590031,1754919067800,-460.0,0.0002,2]
[378590032,1754919067809,-546.96241014,0.0002,2]
[378590033,1754919067819,-460.0,0.0002,2]
[378590034,1754919067829,-460.0,0.0002,2]
[378590035,1754919067839,-569.87475365,0.0002,2]
[378590036,1754919067849,-460.0,0.0002,2]
[378590037,1754919067859,-460.0,0.0002,2]
[378590038,1754919067869,-460.0,0.0002,2]
[378590039,1754919067880,-460.0,0.0002,2]
[378590040,1754919067890,-460.0,0.0002,2]
[378590041,1754919067900,-461.48970758,0.0002,2]
[378590042,1754919067909,-460.0,0.0002,2]
[378590043,1754919067919,-782.95,0.0002,2]
[378590044,1754919067929,-464.10291911,0.0002,2]
[378590045,1754919067938,-460.0,0.0002,2]
[378590046,1754919067948,-500.0,0.0002,2]
[378590047,1754919067957,-468.67,0.0002,2]
[378590048,1754919067967,-460.0,0.0002,2]
[378590049,1754919067981,-460.0,0.0002,2]
[378590050,1754919067990,-932.86,0.0002,2]
[378590051,1754919068000,-460.0,0.0002,2]
[378590052,1754919068010,-460.0,0.0002,2]
[378590053,1754919068019,-460.0,0.0002,2]
[378590054,1754919068028,-460.0,0.0002,2]
[378590055,1754919068037,-460.0,0.0002,2]
[378590056,1754919068046,-247.86691074,0.0002,2]
[378590057,1754919068056,-460.0,0.0002,2]
[378590058,1754919068065,-515.65,0.0002,2]
[378590059,1754919068074,-477.49,0.0002,2]
[378590060,1754919068084,-460.0,0.0002,2]
[378590061,1754919068094,-460.0,0.0002,2]
[378590062,1754919068104,-460.0,0.0002,2]
[378590063,1754919068115,-308.41744203,0.0002,2]
[378590064,1754919068125,-460.0,0.0002,2]
[378590065,1754919068135,-460.0,0.0002,2]
[378590066,1754919068145,-460.0,0.0002,2]
[378590067,1754919068156,-460.0,0.0002,2]
[378590068,1754919068166,-460.0,0.0002,2]
[378590069,1754919068176,-460.0,0.0002,2]
[378590070,1754919068186,-515.7,0.0002,2]
[378590071,1754919068197,-460.0,0.0002,2]
[378590072,1754919068208,-282.70749764,0.0002,2]
[378590073,1754919068218,-460.0,0.0002,2]
[378590074,1754919068234,-460.0,0.0002,2]
[378590075,1754919068249,-460.0,0.0002,2]
[378590076,1754919068259,-630.09,0.0002,2]
[378590077,1754919068271,-564.68,0.0002,2]
[378590078,1754919068281,-460.0,0.0002,2]
[378590079,1754919068290,-460.0,0.0002,2]
[378590080,1754919068299,-460.0,0.0002,2]
[378590081,1754919068310,-460.0,0.0002,2]
[378590082,1754919068320,-588.83,0.0002,2]
[378590083,1754919068329,-534.88,0.0002,2]
[378590084,1754919068338,-460.0,0.0002,2]
[378590085,1754919068347,-1460.04,0.0002,2]
[378590086,1754919068357,-460.0,0.0002,2]
[378590087,1754919068366,-460.0,0.0002,2]
[378590088,1754919068380,-460.0,0.0002,2]
[378590089,1754919068390,-460.0,0.0002,2]
[378590090,1754919068400,-460.0,0.0002,2]
[378590091,1754919068409,-460.0,0.0002,2]
[378590092,1754919068419,-460.0,0.0002,2]
[378590093,1754919068428,-460.0,0.0002,2]
[378590094,1754919068437,-262.48677597,0.0002,2]
[378590095,1754919068447,-460.0,0.0002,2]
[378590096,1754919068457,-460.0,0.0002,2]
[378590097,1754919068467,-292.07696659,0.0002,2]
[378590098,1754919068483,-460.0,0.0002,2]
[378590099,1754919068493,-460.0,0.0002,2]
[378590100,1754919068503,-742.19,0.0002,2]
[378590101,1754919068512,-1006.46,0.0002,2]
[378590102,1754919068523,-460.0,0.0002,2]
[378590103,1754919068533,-983.5,0.0002,2]
[378590104,1754919068543,-460.0,0.0002,2]
[378590105,1754919068554,-460.0,0.0002,2]
[378590106,1754919068565,-460.0,0.0002,2]
[378590107,1754919068575,-509.99994878,0.0002,2]
[378590108,1754919068585,-460.0,0.0002,2]
[378590109,1754919068595,-298.9357942,0.0002,2]
[378590110,1754919068606,-822.18,0.0002,2]
[378590111,1754919068616,-460.0,0.0002,2]
[378590112,1754919068626,-460.0,0.0002,2]
[378590113,1754919068636,-460.0,0.0002,2]
[378590114,1754919068646,-460.0,0.0002,2]
[378590115,1754919068656,-1366.84,0.0002,2]
[378590116,1754919068666,-1618.07,0.0002,2]
[378590117,1754919068675,-481.64,0.0002,2]
[378590118,1754919068685,-460.0,0.0002,2]
[378590119,1754919068694,-460.0,0.0002,2]
[378590120,1754919068704,-460.0,0.0002,2]
[378590121,1754919068714,-460.0,0.0002,2]
[378590122,1754919068727,-460.0,0.0002,2]
[378590123,1754919068737,-460.0,0.0002,2]
[378590124,1754919068747,-460.0,0.0002,2]
[378590125,1754919068756,-821.57,0.0002,2]
[378590126,1754919068765,-460.0,0.0002,2]
[378590127,1754919068775,-590.29,0.0002,2]
[378590128,1754919068784,-460.0,0.0002,2]
[378590129,1754919068794,-1130.52,0.0002,2]
[378590130,1754919068803,-460.0,0.0002,2]
[378590131,1754919068813,-460.0,0.0002,2]
[378590132,1754919068823,-658.43,0.0002,2]
[378590133,1754919068832,-463.15122904,0.0002,2]
[378590134,1754919068842,-476.13,0.0002,2]
[378590135,1754919068852,-460.0,0.0002,2]
[378590136,1754919068861,-465.54300267,0.0002,2]
[378590137,1754919068870,-460.0,0.0002,2]
[378590138,1754919068879,-460.0,0.0002,2]
[378590139,1754919068888,-460.0,0.0002,2]
[378590140,1754919068898,-460.0,0.0002,2]
[378590141,1754919068907,-460.0,0.0002,2]
[378590142,1754919068916,-460.0,0.0002,2]
[378590143,1754919068926,-460.0,0.0002,2]
[378590144,1754919068935,-881.93,0.0002,2]
[378590145,1754919068945,-460.0,0.0002,2]
[378590146,1754919068954,-460.0,0.0002,2]
[378590147,1754919068963,-460.0,0.0002,2]
[378590148,1754919068976,-460.0,0.0002,2]
[378590149,1754919068986,-460.0,0.0002,2]
[378590150,1754919068995,-460.0,0.0002,2]
[378590151,1754919069004,-460.0,0.0002,2]
[378590152,1754919069013,-460.0,0.0002,2]
[378590153,1754919069080,-506.35,0.0002,2]
[378590154,1754919069090,-460.0,0.0002,2]
[378590155,1754919069100,-460.0,0.0002,2]
[378590156,1754919069109,-646.29,0.0002,2]
[378590157,1754919069119,-460.0,0.0002,2]
[378590158,1754919069130,-460.0,0.0002,2]
[378590159,1754919069139,-477.508044,0.0002,2]
[378590160,1754919069148,-460.0,0.0002,2]
[378590161,1754919069158,-460.0,0.0002,2]
[378590162,1754919069167,-460.0,0.0002,2]
[378590163,1754919069176,-460.0,0.0002,2]
[378590164,1754919069185,-460.0,0.0002,2]
[378590165,1754919069195,-460.0,0.0002,2]
[378590166,1754919069204,-460.0,0.0002,2]
[378590167,1754919069214,-460.0,0.0002,2]
[378590168,1754919069227,-460.0,0.0002,2]
[378590169,1754919069239,-1208.83,0.0002,2]
[378590170,1754919069248,-286.84872159,0.0002,2]
[378590171,1754919069257,-473.04,0.0002,2]
[378590172,1754919069267,-470.81,0.0002,2]
[378590173,1754919069276,-832.99,0.0002,2]
[378590174,1754919069285,-935.53,0.0002,2]
[378590175,1754919069294,-460.0,0.0002,2]
[378590176,1754919069303,-460.0,0.0002,2]
[378590177,1754919069312,-460.0,0.0002,2]
[378590178,1754919069323,-460.0,0.0002,2]
[378590179,1754919069333,-460.0,0.0002,2]
[378590180,1754919069343,-460.0,0.0002,2]
[378590181,1754919069352,-460.0,0.0002,2]
[378590182,1754919069361,-460.0,0.0002,2]
[378590183,1754919069370,-460.0,0.0002,2]
[378590184,1754919069379,-460.0,0.0002,2]
[378590185,1754919069388,-806.7,0.0002,2]
[378590186,1754919069397,-460.0,0.0002,2]
[378590187,1754919069406,-460.0,0.0002,2]
[378590188,1754919069416,-460.0,0.0002,2]
[378590189,1754919069425,-664.46,0.0002,2]
[378590190,1754919069434,-480.61,0.0002,2]
[378590191,1754919069443,-1707.53,0.0002,2]
[378590192,1754919069452,-746.56,0.0002,2]
[378590193,1754919069462,-460.0,0.0002,2]
[378590194,1754919069474,-1339.12,0.0002,2]
[378590195,1754919069484,-460.0,0.0002,2]
[378590196,1754919069493,-460.0,0.0002,2]
[378590197,1754919069503,-460.0,0.0002,2]
[378590198,1754919069512,-460.0,0.0002,2]
[378590199,1754919069521,-460.0,0.0002,2]
[378590200,1754919069531,-460.0,0.0002,2]
[378590201,1754919069540,-460.0,0.0002,2]
[378590202,1754919069549,-460.0,0.0002,2]
[378590203,1754919069558,-914.56,0.0002,2]
[378590204,1754919069567,-695.81,0.0002,2]
[378590205,1754919069576,-557.58,0.0002,2]
[378590206,1754919069586,-460.0,0.0002,2]
[378590207,1754919069596,-460.0,0.0002,2]
[378590208,1754919069606,-151.0,0.0002,2]
[378590209,1754919069616,-460.0,0.0002,2]
[378590210,1754919069625,-460.0,0.0002,2]
[378590211,1754919069635,-460.0,0.0002,2]
[378590212,1754919069645,-460.0,0.0002,2]
[378590213,1754919069654,-460.0,0.0002,2]
[378590214,1754919069664,-232.5585651,0.0002,2]
[378590215,1754919069673,-886.34,0.0002,2]
[378590216,1754919069683,-901.64,0.0002,2]
[378590217,1754919069692,-460.0,0.0002,2]
[378590218,1754919069702,-489.29534851,0.0002,2]
[378590219,1754919069712,-460.0,0.0002,2]
[378590220,1754919069725,-827.16,0.0002,2]
[378590221,1754919069735,-460.0,0.0002,2]
[378590222,1754919069744,-1809.73,0.0002,2]
[378590223,1754919069754,-637.56,0.0002,2]
[378590224,1754919069763,-462.14163462,0.0002,2]
[378590225,1754919069772,-460.0,0.0002,2]
[378590226,1754919069782,-567.08,0.0002,2]
[378590227,1754919069791,-460.0,0.0002,2]
[378590228,1754919069800,-496.3,0.0002,2]
[378590229,1754919069810,-460.0,0.0002,2]
[378590230,1754919069819,-3826.01,0.0002,2]
[378590231,1754919069829,-568.3,0.0002,2]
[378590232,1754919069839,-691.68,0.0002,2]
[378590233,1754919069848,-460.0,0.0002,2]
[378590234,1754919069857,-460.0,0.0002,2]
[378590235,1754919069866,-271.93698071,0.0002,2]
[378590236,1754919069875,-460.0,0.0002,2]
[378590237,1754919069885,-460.0,0.0002,2]
[378590238,1754919069895,-460.0,0.0002,2]
[378590239,1754919069905,-1011.33,0.0002,2]
[378590240,1754919069915,-460.0,0.0002,2]
[378590241,1754919069924,-460.0,0.0002,2]
[378590242,1754919069934,-460.0,0.0002,2]
[378590243,1754919069944,-483.66,0.0002,2]
[378590244,1754919069953,-673.00703975,0.0002,2]
[378590245,1754919069963,-460.0,0.0002,2]
[378590246,1754919069976,-460.0,0.0002,2]
[378590247,1754919069985,-971.63,0.0002,2]
[378590248,1754919069995,-2692.02815899,0.0002,2]
[378590249,1754919070004,-3953.1,0.0002,2]
[378590250,1754919070014,-6051.00629437,0.0002,2]
[378590251,1754919070023,-481.84188262,0.0002,2]
[378590252,1754919070032,-151.0,0.0002,2]
[378590253,1754919070041,-460.0,0.0002,2]
[378590254,1754919070050,-460.0,0.0002,2]
[378590255,1754919070060,-605.86,0.0002,2]
[378590256,1754919070069,-392.74432696,0.0002,2]
[378590257,1754919070079,-460.0,0.0002,2]
[378590258,1754919070088,-354.23411882,0.0002,2]
[378590259,1754919070098,-535.64,0.0002,2]
[378590260,1754919070108,-1416.93647526,0.0002,2]
[378590261,1754919070117,-2135.14,0.0002,2]
[378590262,1754919070126,-438.44634756,0.0002,2]
[378590263,1754919070135,-3188.10706934,0.0002,2]
[378590264,1754919070144,-460.0,0.0002,2]
[378590265,1754919070153,-5667.74590104,0.0002,2]
[378590266,1754919070163,-472.55933631,0.0002,2]
[378590267,1754919070172,-8855.85297038,0.0002,2]
[378590268,1754919070182,-460.0,0.0002,2]
[378590269,1754919070191,-460.0,0.0002,2]
[378590270,1754919070200,-343.65240613,0.0002,2]
[378590271,1754919070209,-549.53,0.0002,2]
[378590272,1754919070219,-460.0,0.0002,2]
[378590273,1754919070233,-1225.25,0.0002,2]
[378590274,1754919070246,-460.0,0.0002,2]
[378590275,1754919070255,-460.0,0.0002,2]
[378590276,1754919070264,-1050.87,0.0002,2]
[378590277,1754919070274,-460.0,0.0002,2]
[378590278,1754919070283,-460.0,0.0002,2]
[378590279,1754919070293,-856.79,0.0002,2]
[378590280,1754919070303,-1001.73,0.0002,2]
[378590281,1754919070312,-460.0,0.0002,2]
[378590282,1754919070322,-460.0,0.0002,2]
[378590283,1754919070334,-460.0,0.0002,2]
[378590284,1754919070350,-460.0,0.0002,2]
[378590285,1754919070359,-152.468289,0.0002,2]
[378590286,1754919070369,-423.40433545,0.0002,2]
[378590287,1754919070379,-460.0,0.0002,2]
[378590288,1754919070388,-460.0,0.0002,2]
[378590289,1754919070398,-460.0,0.0002,2]
[378590290,1754919070407,-1018.15,0.0002,2]
[378590291,1754919070417,-1637.25,0.0002,2]
[378590292,1754919070426,-673.4,0.0002,2]
[378590293,1754919070435,-460.0,0.0002,2]
[378590294,1754919070444,-460.0,0.0002,2]
[378590295,1754919070454,-460.0,0.0002,2]
[378590296,1754919070463,-460.0,0.0002,2]
[378590297,1754919070474,-461.92465951,0.0002,2]
[378590298,1754919070483,-460.0,0.0002,2]
[378590299,1754919070493,-2795.15,0.0002,2]
[378590300,1754919070503,-1979.8,0.0002,2]
[378590301,1754919070512,-460.0,0.0002,2]
[378590302,1754919070522,-667.66,0.0002,2]
[378590303,1754919070532,-460.0,0.0002,2]
[378590304,1754919070542,-460.0,0.0002,2]
[378590305,1754919070551,-460.0,0.0002,2]
[378590306,1754919070561,-480.66,0.0002,2]
[378590307,1754919070571,-836.56,0.0002,2]
[378590308,1754919070582,-987.3,0.0002,2]
[378590309,1754919070592,-1384.5,0.0002,2]
[378590310,1754919070602,-460.0,0.0002,2]
[378590311,1754919070611,-460.0,0.0002,2]
[378590312,1754919070621,-826.6,0.0002,2]
[378590313,1754919070630,-523.0826041,0.0002,2]
[378590314,1754919070639,-460.0,0.0002,2]
[378590315,1754919070649,-498.41,0.0002,2]
[378590316,1754919070659,-967.31,0.0002,2]
[378590317,1754919070669,-460.0,0.0002,2]
[378590318,1754919070678,-496.37,0.0002,2]
[378590319,1754919070688,-460.0,0.0002,2]
[378590320,1754919070699,-460.0,0.0002,2]
[378590321,1754919070710,-460.0,0.0002,2]
[378590322,1754919070720,-460.0,0.0002,2]
[378590323,1754919070734,-460.0,0.0002,2]
[378590324,1754919070744,-460.0,0.0002,2]
[378590325,1754919070754,-1552.45,0.0002,2]
[378590326,1754919070763,-460.0,0.0002,2]
[378590327,1754919070773,-460.0,0.0002,2]
[378590328,1754919070782,-460.0,0.0002,2]
[378590329,1754919070791,-460.0,0.0002,2]
[378590330,1754919070801,-2280.34,0.0002,2]
[378590331,1754919070811,-5522.57,0.0002,2]
[378590332,1754919070820,-456.27432307,0.0002,2]
[378590333,1754919070830,-497.59,0.0002,2]
[378590334,1754919070840,-460.0,0.0002,2]
[378590335,1754919070850,-460.0,0.0002,2]
[378590336,1754919070859,-460.0,0.0002,2]
[378590337,1754919070868,-495.38,0.0002,2]
[378590338,1754919070878,-460.0,0.0002,2]
[378590339,1754919070889,-1272.79,0.0002,2]
[378590340,1754919070899,-460.0,0.0002,2]
[378590341,1754919070909,-3242.83,0.0002,2]
[378590342,1754919070918,-739.66,0.0002,2]
[378590343,1754919070928,-460.0,0.0002,2]
[378590344,1754919070938,-151.0,0.0002,2]
[378590345,1754919070948,-1767.27,0.0002,2]
[378590346,1754919070957,-460.0,0.0002,2]
[378590347,1754919070967,-460.0,0.0002,2]
[378590348,1754919070980,-4693.73,0.0002,2]
[378590349,1754919070989,-160.0,0.0002,3]
[378590350,1754919070999,-972.77,0.0002,2]
[378590351,1754919071009,-151.0,0.0002,2]
[378590352,1754919071019,-1414.33,0.0002,2]
[378590353,1754919071028,-460.0,0.0002,2]
[378590354,1754919071038,-568.57943513,0.0002,2]
[378590355,1754919071048,-2946.27,0.0002,2]
[378590356,1754919071057,-460.0,0.0002,2]
[378590357,1754919071067,-816.78,0.0002,2]
[378590358,1754919071076,-460.0,0.0002,2]
[378590359,1754919071086,-1221.01,0.0002,2]
[378590360,1754919071095,-5792.19,0.0002,2]
[378590361,1754919071104,-1240.59,0.0002,2]
[378590362,1754919071114,-460.0,0.0002,2]
[378590363,1754919071124,-460.0,0.0002,2]
[378590364,1754919071133,-809.88,0.0002,2]
[378590365,1754919071143,-2058.68,0.0002,2]
[378590366,1754919071152,-547.92995498,0.0002,2]
[378590367,1754919071161,-460.02790009,0.0002,2]
[378590368,1754919071171,-479.63,0.0002,2]
[378590369,1754919071180,-460.0,0.0002,2]
[378590370,1754919071189,-1568.27,0.0002,2]
[378590371,1754919071199,-460.0,0.0002,2]
[378590372,1754919071210,-460.0,0.0002,2]
[378590373,1754919071220,-460.0,0.0002,2]
[378590374,1754919071233,-460.0,0.0002,2]
[378590375,1754919071247,-686.82,0.0002,2]
[378590376,1754919071257,-460.0,0.0002,2]
[378590377,1754919071267,-577.48,0.0002,2]
[378590378,1754919071276,-627.52,0.0002,2]
[378590379,1754919071287,-460.0,0.0002,2]
[378590380,1754919071296,-460.0,0.0002,2]
[378590381,1754919071306,-460.0,0.0002,2]
[378590382,1754919071316,-460.0,0.0002,2]
[378590383,1754919071326,-2507.91,0.0002,2]
[378590384,1754919071336,-460.0,0.0002,2]
[378590385,1754919071345,-460.0,0.0002,2]
[378590386,1754919071355,-793.18,0.0002,2]
[378590387,1754919071364,-460.0,0.0002,2]
[378590388,1754919071374,-460.0,0.0002,2]
[378590389,1754919071383,-460.0,0.0002,2]
[378590390,1754919071393,-715.76,0.0002,2]
[378590391,1754919071403,-460.0,0.0002,2]
[378590392,1754919071413,-460.0,0.0002,2]
[378590393,1754919071422,-9403.67305331,0.0002,2]
[378590394,1754919071432,-460.0,0.0002,2]
[378590395,1754919071442,-460.0,0.0002,2]
[378590396,1754919071452,-224.36982195,0.0002,20]
[378590397,1754919071464,-460.0,0.0002,2]
[378590398,1754919071477,-460.0,0.0002,2]
[378590399,1754919071487,-364.11032064,0.0002,2]
[378590400,1754919071496,-12003.10339825,0.0002,2]
[378590401,1754919071506,-460.0,0.0002,2]
[378590402,1754919071516,-766.13,0.0002,2]
[378590403,1754919071526,-460.0,0.0002,2]
[378590404,1754919071536,-213.499224,0.0002,2]
[378590405,1754919071547,-7237.17604782,0.0002,10]
[378590406,1754919071557,-460.0,0.0002,2]
[378590407,1754919071567,-460.0,0.0002,2]
[378590408,1754919071577,-17001.48056737,0.0002,2]
[378590409,1754919071587,-213.499224,0.0002,2]
[378590410,1754919071597,-460.0,0.0002,2]
[378590411,1754919071607,-460.0,0.0002,2]
[378590412,1754919071617,-31509.20856891,0.0002,2]
[378590413,1754919071627,-4043.18,0.0002,2]
[378590414,1754919071636,-3754.87,0.0002,2]
[378590415,1754919071646,-460.0,0.0002,2]
[378590416,1754919071656,-604.08,0.0002,2]
[378590417,1754919071666,-460.0,0.0002,2]
[378590418,1754919071676,-898.21,0.0002,2]
[378590419,1754919071686,-460.0,0.0002,2]
[378590420,1754919071696,-460.0,0.0002,2]
[378590421,1754919071706,-785.37,0.0002,2]
[378590422,1754919071716,-1000.0,0.0002,2]
[378590423,1754919071732,-490.82,0.0002,2]
[378590424,1754919071746,-460.0,0.0002,2]
[378590425,1754919071756,-5298.29,0.0002,2]
[378590426,1754919071767,-460.0,0.0002,2]
[378590427,1754919071777,-4101.84,0.0002,2]
[378590428,1754919071787,-460.0,0.0002,2]
[378590429,1754919071797,-2408.21,0.0002,2]
[378590430,1754919071806,-460.0,0.0002,2]
[378590431,1754919071816,-460.0,0.0002,2]
[378590432,1754919071826,-460.0,0.0002,2]
[378590433,1754919071837,-547.02,0.0002,2]
[378590434,1754919071847,-758.74,0.0002,2]
[378590435,1754919071860,-461.4589706,0.0002,2]
[378590436,1754919071870,-460.0,0.0002,2]
[378590437,1754919071879,-853.74,0.0002,2]
[378590438,1754919071889,-460.0,0.0002,2]
[378590439,1754919071899,-732.83,0.0002,2]
[378590440,1754919071908,-460.0,0.0002,2]
[378590441,1754919071918,-460.0,0.0002,2]
[378590442,1754919071928,-1228.24,0.0002,2]
[378590443,1754919071938,-1360.97,0.0002,2]
[378590444,1754919071948,-1044.02,0.0002,2]
[378590445,1754919071958,-460.0,0.0002,2]
[378590446,1754919071968,-1031.12,0.0002,2]
[378590447,1754919071982,-489.61,0.0002,2]
[378590448,1754919071992,-13325.46,0.0002,2]
[378590449,1754919072002,-2239.55,0.0002,2]
[378590450,1754919072012,-460.0,0.0002,2]
[378590451,1754919072021,-460.0,0.0002,2]
[378590452,1754919072031,-460.0,0.0002,2]
[378590453,1754919072040,-471.55,0.0002,2]
[378590454,1754919072050,-518.09,0.0002,2]
[378590455,1754919072060,-913.9,0.0002,2]
[378590456,1754919072069,-489.84,0.0002,2]
[378590457,1754919072079,-460.0,0.0002,2]